[Event "*** Titled Tuesday Blitz"]
[Site "Chess.com"]
[Date "2018.10.02"]
[Round "10"]
[White "Shant_Sargsyan"]
[Black "petrpalachev"]
[Result "1-0"]
[WhiteElo "2898"]
[BlackElo "2780"]
[TimeControl "180+2"]
[EndTime "15:11:29 PDT"]
[Termination "Shant_Sargsyan won by resignation"]

1. d4 {[%clk 0:03:01.9]} 1... Nf6 {[%clk 0:03:00.7]} 2. Nf3 {[%clk 0:03:03.2]}
2... d5 {[%clk 0:03:01.7]} 3. c4 {[%clk 0:03:04.3]} 3... e6 {[%clk 0:03:02.8]}
4. Nc3 {[%clk 0:03:05.1]} 4... a6 {[%clk 0:03:03.7]} 5. cxd5 {[%clk 0:03:06]}
5... exd5 {[%clk 0:03:05.6]} 6. Bg5 {[%clk 0:03:07.8]} 6... Be6 {[%clk
0:03:07.2]} 7. e3 {[%clk 0:03:09]} 7... Nbd7 {[%clk 0:03:08.6]} 8. Bd3 {[%clk
0:03:10.5]} 8... Bd6 {[%clk 0:03:09.1]} 9. h3 {[%clk 0:03:11.7]} 9... h6 {[%clk
0:03:07.4]} 10. Bf4 {[%clk 0:03:12.4]} 10... Qe7 {[%clk 0:03:08.9]} 11. O-O
{[%clk 0:03:13]} 11... O-O {[%clk 0:03:09.8]} 12. Rc1 {[%clk 0:03:13.7]} 12...
c6 {[%clk 0:03:09.2]} 13. Na4 {[%clk 0:03:14.5]} 13... a5 {[%clk 0:03:04.1]} 14.
Bxd6 {[%clk 0:03:12.5]} 14... Qxd6 {[%clk 0:03:04.9]} 15. Nc5 {[%clk 0:03:14.4]}
15... Nxc5 {[%clk 0:02:50.1]} 16. dxc5 {[%clk 0:03:15.5]} 16... Qc7 {[%clk
0:02:49.1]} 17. Nd4 {[%clk 0:03:16.5]} 17... Rfe8 {[%clk 0:02:48.6]} 18. a3
{[%clk 0:03:17]} 18... Nd7 {[%clk 0:02:47.5]} 19. b4 {[%clk 0:03:18]} 19... axb4
{[%clk 0:02:49.4]} 20. axb4 {[%clk 0:03:19.9]} 20... Ne5 {[%clk 0:02:50]} 21.
Be2 {[%clk 0:03:20.4]} 21... Nd7 {[%clk 0:02:39.3]} 22. Ra1 {[%clk 0:03:21.2]}
22... b6 {[%clk 0:02:33.9]} 23. cxb6 {[%clk 0:03:21.6]} 23... Qxb6 {[%clk
0:02:35.8]} 24. Qd2 {[%clk 0:03:20.7]} 24... c5 {[%clk 0:02:34.1]} 25. bxc5
{[%clk 0:03:21.8]} 25... Nxc5 {[%clk 0:02:33.1]} 26. Rab1 {[%clk 0:03:23]} 26...
Qd6 {[%clk 0:02:28.7]} 27. Qb4 {[%clk 0:03:22.1]} 27... Rab8 {[%clk 0:02:21.3]}
28. Nb5 {[%clk 0:03:21.6]} 28... Qe7 {[%clk 0:02:18]} 29. Rfc1 {[%clk
0:03:22.8]} 29... Ne4 {[%clk 0:02:18.7]} 30. Qxe7 {[%clk 0:03:23.2]} 30... Rxe7
{[%clk 0:02:20.6]} 31. Nd4 {[%clk 0:03:21.5]} 31... Rxb1 {[%clk 0:02:19.7]} 32.
Rxb1 {[%clk 0:03:23.4]} 32... g5 {[%clk 0:02:18.3]} 33. Rb8+ {[%clk 0:03:24]}
33... Kg7 {[%clk 0:02:19.1]} 34. Bd3 {[%clk 0:03:24.6]} 34... Nf6 {[%clk
0:02:18.7]} 35. Ra8 {[%clk 0:03:19.9]} 35... Rc7 {[%clk 0:02:18.3]} 36. Bf5
{[%clk 0:03:18.2]} 36... Re7 {[%clk 0:02:09.3]} 37. Ra6 {[%clk 0:03:13.4]} 37...
Bd7 {[%clk 0:02:03.5]} 38. Bxd7 {[%clk 0:03:10.8]} 38... Rxd7 {[%clk 0:02:05.4]}
39. Nf5+ {[%clk 0:03:12.4]} 39... Kg6 {[%clk 0:02:06.8]} 40. g4 {[%clk
0:03:07.1]} 40... h5 {[%clk 0:02:02.8]} 41. f3 {[%clk 0:03:07.9]} 41... hxg4
{[%clk 0:02:03.5]} 42. hxg4 {[%clk 0:03:09.8]} 42... Rd8 {[%clk 0:01:53.9]} 43.
Kf2 {[%clk 0:03:03.9]} 43... Re8 {[%clk 0:01:53.7]} 44. Kg3 {[%clk 0:03:02.4]}
44... Re6 {[%clk 0:01:50]} 45. Ra8 {[%clk 0:03:03.8]} 45... Re8 {[%clk
0:01:29.8]} 46. Ra1 {[%clk 0:03:03.5]} 46... Ng8 {[%clk 0:01:15.7]} 47. Rd1
{[%clk 0:02:55.7]} 47... Ne7 {[%clk 0:01:11.5]} 48. Nd4 {[%clk 0:02:54.2]} 48...
Rc8 {[%clk 0:00:27.5]} 49. Rb1 {[%clk 0:02:54.8]} 49... Rc3 {[%clk 0:00:20.2]}
50. Kf2 {[%clk 0:02:49.6]} 50... f6 {[%clk 0:00:20.2]} 51. Rb7 {[%clk
0:02:50.5]} 1-0

[Event "*** Titled Tuesday Blitz"]
[Site "Chess.com"]
[Date "2018.10.02"]
[Round "10"]
[White "kleinebeer98"]
[Black "ShimanovAlex"]
[Result "1-0"]
[WhiteElo "2598"]
[BlackElo "2716"]
[TimeControl "180+2"]
[EndTime "15:11:48 PDT"]
[Termination "kleinebeer98 won by resignation"]

1. e4 {[%clk 0:03:00]} 1... c6 {[%clk 0:00:05.4]} 2. d4 {[%clk 0:02:58.4]} 2...
d5 {[%clk 0:00:06.6]} 3. f3 {[%clk 0:03:00.3]} 3... e6 {[%clk 0:00:07.1]} 4. Nc3
{[%clk 0:03:00.8]} 4... b6 {[%clk 0:00:08.4]} 5. Bd3 {[%clk 0:03:01.7]} 5... Ba6
{[%clk 0:00:09.3]} 6. Nge2 {[%clk 0:03:02.6]} 6... Bb4 {[%clk 0:00:10]} 7. O-O
{[%clk 0:03:03.7]} 7... Ne7 {[%clk 0:00:11.3]} 8. Kh1 {[%clk 0:03:04.7]} 8...
O-O {[%clk 0:00:12.5]} 9. a3 {[%clk 0:03:05.3]} 9... Bxc3 {[%clk 0:00:13.4]} 10.
Nxc3 {[%clk 0:03:07.2]} 10... Bxd3 {[%clk 0:00:14.3]} 11. Qxd3 {[%clk
0:03:08.3]} 11... Nd7 {[%clk 0:00:16]} 12. Bf4 {[%clk 0:03:06.7]} 12... Rc8
{[%clk 0:00:16.7]} 13. Bg3 {[%clk 0:03:06.8]} 13... b5 {[%clk 0:00:17.9]} 14.
Bh4 {[%clk 0:03:00.7]} 14... Re8 {[%clk 0:00:18.5]} 15. exd5 {[%clk 0:02:58.5]}
15... exd5 {[%clk 0:00:19.6]} 16. Rfe1 {[%clk 0:02:59.5]} 16... f6 {[%clk
0:00:20.9]} 17. Bg3 {[%clk 0:02:56.8]} 17... Nb6 {[%clk 0:00:21]} 18. b3 {[%clk
0:02:57.5]} 18... Qd7 {[%clk 0:00:21.3]} 19. a4 {[%clk 0:02:56.1]} 19... bxa4
{[%clk 0:00:20]} 20. Nxa4 {[%clk 0:02:56.9]} 20... Nxa4 {[%clk 0:00:19.1]} 21.
Rxa4 {[%clk 0:02:58.8]} 21... Nf5 {[%clk 0:00:20.4]} 22. Rea1 {[%clk 0:03:00.3]}
22... Ra8 {[%clk 0:00:20.1]} 23. Bf2 {[%clk 0:02:57.5]} 23... Re7 {[%clk
0:00:19.6]} 24. Ra6 {[%clk 0:02:31.7]} 24... Nd6 {[%clk 0:00:17.6]} 25. Qc3
{[%clk 0:02:30.3]} 25... Re2 {[%clk 0:00:18.6]} 26. Bg3 {[%clk 0:02:30.6]} 26...
Nb5 {[%clk 0:00:19.8]} 27. Qc5 {[%clk 0:02:29]} 27... Rae8 {[%clk 0:00:18.2]}
28. Rxc6 {[%clk 0:02:25.8]} 28... Nxd4 {[%clk 0:00:14.2]} 29. Rd6 {[%clk
0:02:13.7]} 29... Qe7 {[%clk 0:00:04.2]} 30. Qxd4 {[%clk 0:02:10.3]} 30... Rxc2
{[%clk 0:00:04.8]} 31. Qxd5+ {[%clk 0:02:10.8]} 31... Kh8 {[%clk 0:00:06.4]} 32.
h3 {[%clk 0:02:09]} 32... Qe2 {[%clk 0:00:07.2]} 33. Rg1 {[%clk 0:02:08.6]}
33... h6 {[%clk 0:00:07]} 34. Rd8 {[%clk 0:02:09.1]} 34... Rxd8 {[%clk
0:00:07.9]} 35. Qxd8+ {[%clk 0:02:11]} 35... Kh7 {[%clk 0:00:09.7]} 36. Qd1
{[%clk 0:02:07.8]} 36... Qxd1 {[%clk 0:00:03.2]} 37. Rxd1 {[%clk 0:02:08.2]}
37... Rc3 {[%clk 0:00:04.5]} 38. Ra1 {[%clk 0:02:07.3]} 38... Rxb3 {[%clk
0:00:05.1]} 39. Rxa7 {[%clk 0:02:08.5]} 39... Rd3 {[%clk 0:00:06.1]} 40. Kh2
{[%clk 0:02:09.6]} 40... h5 {[%clk 0:00:07.5]} 41. Bf2 {[%clk 0:02:07.9]} 41...
Kh6 {[%clk 0:00:07.5]} 42. Ra8 {[%clk 0:02:07.6]} 42... g5 {[%clk 0:00:08.5]}
43. h4 {[%clk 0:02:06]} 43... Kg6 {[%clk 0:00:08.5]} 44. hxg5 {[%clk 0:02:05.4]}
44... fxg5 {[%clk 0:00:10.4]} 45. Ra6+ {[%clk 0:02:06.5]} 45... Kf5 {[%clk
0:00:11.7]} 46. Ra5+ {[%clk 0:02:08.4]} 46... Kg6 {[%clk 0:00:12.4]} 47. Kg3
{[%clk 0:02:03.6]} 47... Rd2 {[%clk 0:00:12.7]} 48. Rxg5+ {[%clk 0:02:04]} 1-0

[Event "*** Titled Tuesday Blitz"]
[Site "Chess.com"]
[Date "2018.10.02"]
[Round "10"]
[White "hurricane7791"]
[Black "Fins0905"]
[Result "0-1"]
[WhiteElo "2688"]
[BlackElo "2597"]
[TimeControl "180+2"]
[EndTime "15:11:50 PDT"]
[Termination "Fins0905 won by resignation"]

1. d4 {[%clk 0:03:01.9]} 1... d5 {[%clk 0:03:00.6]} 2. c4 {[%clk 0:03:01.9]}
2... c6 {[%clk 0:03:01.7]} 3. Nf3 {[%clk 0:03:03.2]} 3... Nf6 {[%clk 0:03:02.6]}
4. Nc3 {[%clk 0:03:04.7]} 4... dxc4 {[%clk 0:03:02]} 5. a4 {[%clk 0:03:06.1]}
5... Bf5 {[%clk 0:03:02.9]} 6. e3 {[%clk 0:03:07.4]} 6... e6 {[%clk 0:03:03.9]}
7. Bxc4 {[%clk 0:03:08.1]} 7... Bb4 {[%clk 0:03:05.5]} 8. O-O {[%clk 0:03:09.6]}
8... O-O {[%clk 0:03:06.1]} 9. Nh4 {[%clk 0:03:10.9]} 9... Bg4 {[%clk
0:03:06.3]} 10. f3 {[%clk 0:03:12.4]} 10... Bh5 {[%clk 0:03:07.1]} 11. g4 {[%clk
0:03:13.9]} 11... Bg6 {[%clk 0:03:07]} 12. Qe2 {[%clk 0:03:09.5]} 12... Nbd7
{[%clk 0:02:58.8]} 13. Rd1 {[%clk 0:03:10.2]} 13... Qe7 {[%clk 0:02:56.8]} 14.
f4 {[%clk 0:02:50.9]} 14... c5 {[%clk 0:02:28.5]} 15. Nxg6 {[%clk 0:02:45.6]}
15... hxg6 {[%clk 0:02:29.1]} 16. Na2 {[%clk 0:02:42]} 16... cxd4 {[%clk
0:02:10.9]} 17. Nxb4 {[%clk 0:02:41.9]} 17... Qxb4 {[%clk 0:02:12.8]} 18. Rxd4
{[%clk 0:02:43.3]} 18... Qc5 {[%clk 0:01:54.8]} 19. b4 {[%clk 0:02:41.9]} 19...
Qc7 {[%clk 0:01:54.2]} 20. g5 {[%clk 0:02:37.3]} 20... Nh5 {[%clk 0:01:38.1]}
21. Rd1 {[%clk 0:02:28.3]} 21... Rac8 {[%clk 0:01:27.6]} 22. Ba2 {[%clk
0:02:26.8]} 22... Nb6 {[%clk 0:01:23.3]} 23. Bb3 {[%clk 0:01:47.3]} 23... Nd5
{[%clk 0:01:10.4]} 24. Rd4 {[%clk 0:01:31]} 24... Qc3 {[%clk 0:00:53.8]} 25. Rb1
{[%clk 0:01:25.9]} 25... Ndxf4 {[%clk 0:00:27.8]} 26. Rxf4 {[%clk 0:01:23.4]}
26... Nxf4 {[%clk 0:00:28.3]} 27. exf4 {[%clk 0:01:25.3]} 27... Rfd8 {[%clk
0:00:25.3]} 28. Be3 {[%clk 0:01:18.1]} 28... Rd3 {[%clk 0:00:18.3]} 29. Kf2
{[%clk 0:00:56.8]} 29... Rcd8 {[%clk 0:00:15.3]} 30. Kf3 {[%clk 0:00:40.2]}
30... Rxe3+ {[%clk 0:00:10.4]} 31. Qxe3 {[%clk 0:00:39.1]} 31... Rd3 {[%clk
0:00:11.9]} 32. Re1 {[%clk 0:00:40.6]} 32... Qxb3 {[%clk 0:00:12.1]} 0-1

[Event "*** Titled Tuesday Blitz"]
[Site "Chess.com"]
[Date "2018.10.02"]
[Round "10"]
[White "Blagorod"]
[Black "Thee-Chessboy"]
[Result "0-1"]
[WhiteElo "2044"]
[BlackElo "2306"]
[TimeControl "180+2"]
[EndTime "15:11:59 PDT"]
[Termination "Thee-Chessboy won by resignation"]

1. e4 {[%clk 0:03:01.9]} 1... c5 {[%clk 0:02:59.8]} 2. Nc3 {[%clk 0:03:02.3]}
2... e6 {[%clk 0:02:58.2]} 3. g3 {[%clk 0:03:02.5]} 3... a6 {[%clk 0:02:57.3]}
4. Bg2 {[%clk 0:03:03.4]} 4... b5 {[%clk 0:02:58]} 5. d3 {[%clk 0:03:03.3]} 5...
Bb7 {[%clk 0:02:57.9]} 6. f4 {[%clk 0:03:02.9]} 6... Nf6 {[%clk 0:02:56.4]} 7.
Nf3 {[%clk 0:03:01]} 7... d5 {[%clk 0:02:55.6]} 8. e5 {[%clk 0:03:01.2]} 8...
Nfd7 {[%clk 0:02:55.4]} 9. O-O {[%clk 0:03:00.9]} 9... Be7 {[%clk 0:02:55.5]}
10. Ne2 {[%clk 0:02:59.4]} 10... Nc6 {[%clk 0:02:54.3]} 11. c3 {[%clk
0:02:59.9]} 11... g6 {[%clk 0:02:46.9]} 12. d4 {[%clk 0:02:58.5]} 12... c4
{[%clk 0:02:46.1]} 13. Be3 {[%clk 0:02:50.2]} 13... a5 {[%clk 0:02:41.9]} 14. a3
{[%clk 0:02:42.8]} 14... Qb6 {[%clk 0:02:37.9]} 15. Qd2 {[%clk 0:02:39.1]} 15...
O-O {[%clk 0:02:32.7]} 16. g4 {[%clk 0:02:35.5]} 16... f5 {[%clk 0:02:25.7]} 17.
g5 {[%clk 0:02:30]} 17... Kf7 {[%clk 0:02:20]} 18. Ne1 {[%clk 0:02:21.6]} 18...
h6 {[%clk 0:02:16]} 19. h4 {[%clk 0:02:15.5]} 19... hxg5 {[%clk 0:02:15.7]} 20.
hxg5 {[%clk 0:02:16.6]} 20... Rh8 {[%clk 0:02:15.4]} 21. Nf3 {[%clk 0:02:17.3]}
21... b4 {[%clk 0:02:10.5]} 22. axb4 {[%clk 0:02:10.7]} 22... axb4 {[%clk
0:02:10.2]} 23. Kf2 {[%clk 0:02:09.7]} 23... b3 {[%clk 0:02:06]} 24. Rxa8 {[%clk
0:01:56.1]} 24... Rxa8 {[%clk 0:02:04.2]} 25. Rb1 {[%clk 0:01:57.7]} 25... Ra2
{[%clk 0:02:01]} 26. Nc1 {[%clk 0:01:55.4]} 26... Qa5 {[%clk 0:01:54.9]} 27. Qe1
{[%clk 0:01:34]} 27... Ra1 {[%clk 0:01:43.3]} 28. Nxb3 {[%clk 0:01:27.3]} 28...
Rxb1 {[%clk 0:01:42.2]} 29. Nxa5 {[%clk 0:01:25.6]} 29... Rxe1 {[%clk
0:01:41.7]} 30. Nxc6 {[%clk 0:00:40.5]} 30... Rb1 {[%clk 0:01:38]} 31. Nxe7
{[%clk 0:00:39.8]} 31... Rxb2+ {[%clk 0:01:35.2]} 32. Kg3 {[%clk 0:00:41.1]}
32... Kxe7 {[%clk 0:01:34.1]} 33. Bd2 {[%clk 0:00:26.7]} 33... Bc6 {[%clk
0:01:29.3]} 34. Kf2 {[%clk 0:00:26.5]} 34... Ba4 {[%clk 0:01:28.9]} 35. Ke3
{[%clk 0:00:26.8]} 35... Bc2 {[%clk 0:01:27.3]} 36. Bf1 {[%clk 0:00:23.1]} 36...
Be4 {[%clk 0:01:24.3]} 37. Nh4 {[%clk 0:00:21.6]} 37... Kf7 {[%clk 0:01:23.9]}
38. Bh3 {[%clk 0:00:21.5]} 38... Nb6 {[%clk 0:01:20.7]} 39. Bf1 {[%clk
0:00:21.9]} 39... Na4 {[%clk 0:01:19.2]} 40. Be2 {[%clk 0:00:23.2]} 40... Rb1
{[%clk 0:01:17.4]} 41. Bd1 {[%clk 0:00:23.4]} 41... Rxd1 {[%clk 0:01:17.1]} 0-1

[Event "*** Titled Tuesday Blitz"]
[Site "Chess.com"]
[Date "2018.10.02"]
[Round "10"]
[White "Bauxi435"]
[Black "kasparik_garik"]
[Result "0-1"]
[WhiteElo "2426"]
[BlackElo "2554"]
[TimeControl "180+2"]
[EndTime "15:12:05 PDT"]
[Termination "kasparik_garik won by resignation"]

1. d4 {[%clk 0:03:01.9]} 1... Nf6 {[%clk 0:03:00]} 2. c4 {[%clk 0:03:00.4]} 2...
g6 {[%clk 0:02:59.9]} 3. Nc3 {[%clk 0:03:01.9]} 3... Bg7 {[%clk 0:03:01.8]} 4.
e4 {[%clk 0:03:03]} 4... O-O {[%clk 0:03:03.7]} 5. Be2 {[%clk 0:03:04.5]} 5...
d6 {[%clk 0:03:04.2]} 6. Be3 {[%clk 0:03:06]} 6... e5 {[%clk 0:03:04]} 7. d5
{[%clk 0:03:07]} 7... a5 {[%clk 0:03:04.8]} 8. g4 {[%clk 0:03:08.5]} 8... Na6
{[%clk 0:03:05.7]} 9. g5 {[%clk 0:03:09.5]} 9... Nh5 {[%clk 0:02:58.5]} 10. Bxh5
{[%clk 0:03:07.3]} 10... gxh5 {[%clk 0:02:59.4]} 11. Qxh5 {[%clk 0:03:08.4]}
11... f5 {[%clk 0:02:58.8]} 12. gxf6 {[%clk 0:03:08.1]} 12... Qxf6 {[%clk
0:02:59.5]} 13. O-O-O {[%clk 0:03:05.1]} 13... Qg6 {[%clk 0:02:49.1]} 14. Qxg6
{[%clk 0:03:00.3]} 14... hxg6 {[%clk 0:02:49.9]} 15. Nge2 {[%clk 0:03:00.1]}
15... Kh7 {[%clk 0:02:31.7]} 16. h4 {[%clk 0:02:51.7]} 16... Bg4 {[%clk
0:02:29.6]} 17. Rdg1 {[%clk 0:02:41.4]} 17... Bf3 {[%clk 0:02:22.7]} 18. Rh3
{[%clk 0:02:41.6]} 18... Bh6 {[%clk 0:02:23.3]} 19. Kd2 {[%clk 0:02:36.1]} 19...
Bh5 {[%clk 0:02:19.4]} 20. Rg2 {[%clk 0:02:19.9]} 20... Nc5 {[%clk 0:02:13.2]}
21. Ng3 {[%clk 0:02:10.5]} 21... Bxe3+ {[%clk 0:02:05.9]} 22. fxe3 {[%clk
0:01:59.4]} 22... Rf3 {[%clk 0:02:06]} 23. Rhh2 {[%clk 0:01:52.4]} 23... Raf8
{[%clk 0:01:56.5]} 24. Nxh5 {[%clk 0:01:51.6]} 24... gxh5 {[%clk 0:01:57.5]} 25.
Ke2 {[%clk 0:01:49]} 25... Rf1 {[%clk 0:00:50.8]} 26. Rg5 {[%clk 0:01:47.9]}
26... Rc1 {[%clk 0:00:51.2]} 27. Rxh5+ {[%clk 0:01:30.7]} 27... Kg6 {[%clk
0:00:51.9]} 28. Rg5+ {[%clk 0:01:32]} 28... Kh6 {[%clk 0:00:53]} 29. Kd2 {[%clk
0:01:29.3]} 29... Rxc3 {[%clk 0:00:39.4]} 30. Kxc3 {[%clk 0:01:17.4]} 30...
Nxe4+ {[%clk 0:00:40.3]} 31. Kd3 {[%clk 0:01:18.9]} 31... Nxg5 {[%clk
0:00:40.1]} 32. hxg5+ {[%clk 0:01:20.8]} 32... Kxg5 {[%clk 0:00:40.9]} 33. Rh7
{[%clk 0:01:22.2]} 33... Rc8 {[%clk 0:00:34.3]} 34. Ke4 {[%clk 0:01:21.9]} 34...
b6 {[%clk 0:00:32.6]} 35. b3 {[%clk 0:01:17]} 35... a4 {[%clk 0:00:32.8]} 36. b4
{[%clk 0:01:13]} 36... a3 {[%clk 0:00:33.6]} 37. c5 {[%clk 0:01:11.9]} 37...
bxc5 {[%clk 0:00:32.2]} 38. bxc5 {[%clk 0:01:13]} 38... dxc5 {[%clk 0:00:33.4]}
39. Kxe5 {[%clk 0:01:13.3]} 39... Re8+ {[%clk 0:00:34]} 0-1

[Event "*** Titled Tuesday Blitz"]
[Site "Chess.com"]
[Date "2018.10.02"]
[Round "10"]
[White "Indianlad"]
[Black "jerom555888"]
[Result "0-1"]
[WhiteElo "2806"]
[BlackElo "2729"]
[TimeControl "180+2"]
[EndTime "15:12:08 PDT"]
[Termination "jerom555888 won on time"]

1. d4 {[%clk 0:03:01.9]} 1... f5 {[%clk 0:03:00.8]} 2. Bg5 {[%clk 0:03:00.1]}
2... g6 {[%clk 0:02:49.4]} 3. h4 {[%clk 0:02:58.1]} 3... Bg7 {[%clk 0:02:47.7]}
4. h5 {[%clk 0:02:58.7]} 4... h6 {[%clk 0:02:42.4]} 5. Bf4 {[%clk 0:02:46.1]}
5... g5 {[%clk 0:02:40.2]} 6. Be5 {[%clk 0:02:46.8]} 6... Nf6 {[%clk 0:02:41.3]}
7. Nc3 {[%clk 0:02:47.5]} 7... Nc6 {[%clk 0:02:36.9]} 8. Bxf6 {[%clk 0:02:40.1]}
8... Bxf6 {[%clk 0:02:34.8]} 9. e3 {[%clk 0:02:41.6]} 9... e6 {[%clk 0:02:27.2]}
10. g4 {[%clk 0:02:33.5]} 10... d5 {[%clk 0:02:19.7]} 11. Bb5 {[%clk 0:02:34.2]}
11... O-O {[%clk 0:02:10.1]} 12. Nf3 {[%clk 0:02:28.3]} 12... fxg4 {[%clk
0:02:07.7]} 13. Nh2 {[%clk 0:02:29.4]} 13... e5 {[%clk 0:02:08.7]} 14. Bxc6
{[%clk 0:02:02.1]} 14... bxc6 {[%clk 0:02:08.4]} 15. Nxg4 {[%clk 0:02:03.6]}
15... exd4 {[%clk 0:02:00.4]} 16. exd4 {[%clk 0:02:04.3]} 16... Qe7+ {[%clk
0:01:55.1]} 17. Kf1 {[%clk 0:02:03.8]} 17... Bg7 {[%clk 0:01:51.5]} 18. Ne5
{[%clk 0:01:16]} 18... Bxe5 {[%clk 0:01:40.3]} 19. dxe5 {[%clk 0:01:17.9]} 19...
Qxe5 {[%clk 0:01:37.3]} 20. Qd2 {[%clk 0:01:19.2]} 20... Ba6+ {[%clk 0:01:20.4]}
21. Kg1 {[%clk 0:01:18.3]} 21... Rae8 {[%clk 0:01:17.9]} 22. Rh3 {[%clk
0:01:09.9]} 22... d4 {[%clk 0:01:15.6]} 23. Na4 {[%clk 0:01:09.9]} 23... c5
{[%clk 0:01:09.1]} 24. Qa5 {[%clk 0:00:45.5]} 24... Bb7 {[%clk 0:01:01.8]} 25.
Nxc5 {[%clk 0:00:45.9]} 25... Bc6 {[%clk 0:00:56.4]} 26. Qb4 {[%clk 0:00:43.1]}
26... Kh8 {[%clk 0:00:48.3]} 27. Rd1 {[%clk 0:00:41]} 27... Rf4 {[%clk
0:00:46.3]} 28. Rg3 {[%clk 0:00:15.8]} 28... Rh4 {[%clk 0:00:46.5]} 29. Rg2
{[%clk 0:00:16.4]} 29... Bxg2 {[%clk 0:00:46.3]} 30. Kxg2 {[%clk 0:00:18.3]}
30... Qh2+ {[%clk 0:00:34.9]} 0-1

[Event "*** Titled Tuesday Blitz"]
[Site "Chess.com"]
[Date "2018.10.02"]
[Round "10"]
[White "ChristopherYoo"]
[Black "Saitama_Hero"]
[Result "1-0"]
[WhiteElo "2378"]
[BlackElo "2239"]
[TimeControl "180+2"]
[EndTime "15:12:09 PDT"]
[Termination "ChristopherYoo won on time"]

1. e4 {[%clk 0:03:01.9]} 1... d6 {[%clk 0:02:12.3]} 2. d4 {[%clk 0:03:01.4]}
2... g6 {[%clk 0:02:12.4]} 3. Nc3 {[%clk 0:03:01.2]} 3... Bg7 {[%clk 0:02:13.9]}
4. f4 {[%clk 0:03:01.3]} 4... Nf6 {[%clk 0:02:13.5]} 5. Nf3 {[%clk 0:03:01.9]}
5... O-O {[%clk 0:02:14.7]} 6. Bd3 {[%clk 0:03:02.9]} 6... Na6 {[%clk 0:02:16]}
7. O-O {[%clk 0:03:01.1]} 7... c5 {[%clk 0:02:17.2]} 8. e5 {[%clk 0:03:01]} 8...
Ng4 {[%clk 0:02:10.1]} 9. Bxa6 {[%clk 0:02:03.8]} 9... cxd4 {[%clk 0:02:09.9]}
10. Qxd4 {[%clk 0:01:35.6]} 10... bxa6 {[%clk 0:02:09.3]} 11. h3 {[%clk
0:01:32.1]} 11... Nh6 {[%clk 0:02:07.4]} 12. Rd1 {[%clk 0:01:29.4]} 12... Bb7
{[%clk 0:02:07.1]} 13. Qf2 {[%clk 0:01:21.1]} 13... Qc7 {[%clk 0:01:25.2]} 14.
exd6 {[%clk 0:01:18]} 14... exd6 {[%clk 0:01:27.1]} 15. Nd5 {[%clk 0:01:03.8]}
15... Qc4 {[%clk 0:01:22.5]} 16. b3 {[%clk 0:00:45.5]} 16... Qe4 {[%clk
0:01:18.1]} 17. Ng5 {[%clk 0:00:44.9]} 17... Qe8 {[%clk 0:01:08.3]} 18. Rb1
{[%clk 0:00:31.8]} 18... Nf5 {[%clk 0:00:55.5]} 19. g4 {[%clk 0:00:26.7]} 19...
Ne7 {[%clk 0:00:18.8]} 20. c4 {[%clk 0:00:25.1]} 20... Nxd5 {[%clk 0:00:17.7]}
21. cxd5 {[%clk 0:00:25.7]} 21... Rc8 {[%clk 0:00:18.4]} 22. Bb2 {[%clk
0:00:25]} 22... Bxb2 {[%clk 0:00:11]} 23. Rxb2 {[%clk 0:00:26.1]} 23... Qe7
{[%clk 0:00:09]} 24. Re2 {[%clk 0:00:24.5]} 24... Qf6 {[%clk 0:00:08]} 25. Ne4
{[%clk 0:00:19.8]} 25... Qd8 {[%clk 0:00:05.8]} 26. g5 {[%clk 0:00:19.2]} 26...
Kg7 {[%clk 0:00:03.7]} 27. Qh4 {[%clk 0:00:17.8]} 27... Re8 {[%clk 0:00:03.9]}
28. Qh6+ {[%clk 0:00:16.3]} 28... Kh8 {[%clk 0:00:05.3]} 29. Nf6 {[%clk
0:00:16.2]} 1-0

[Event "*** Titled Tuesday Blitz"]
[Site "Chess.com"]
[Date "2018.10.02"]
[Round "10"]
[White "dmosesov"]
[Black "WPWPWP-2015"]
[Result "1-0"]
[WhiteElo "2311"]
[BlackElo "2251"]
[TimeControl "180+2"]
[EndTime "15:12:09 PDT"]
[Termination "dmosesov won by resignation"]

1. e4 {[%clk 0:03:01.9]} 1... c5 {[%clk 0:02:59.6]} 2. Nf3 {[%clk 0:03:02.6]}
2... d6 {[%clk 0:02:58]} 3. Bb5+ {[%clk 0:02:57.7]} 3... Nd7 {[%clk 0:02:55.7]}
4. O-O {[%clk 0:02:58]} 4... a6 {[%clk 0:02:54.7]} 5. Bd3 {[%clk 0:02:58.3]}
5... e5 {[%clk 0:02:54.1]} 6. c3 {[%clk 0:02:57]} 6... Ngf6 {[%clk 0:02:52]} 7.
Bc2 {[%clk 0:02:58]} 7... Be7 {[%clk 0:02:51.7]} 8. d4 {[%clk 0:02:59]} 8... O-O
{[%clk 0:02:51.8]} 9. Re1 {[%clk 0:02:59.8]} 9... cxd4 {[%clk 0:02:51.9]} 10.
cxd4 {[%clk 0:03:01.7]} 10... b6 {[%clk 0:02:50.9]} 11. Nc3 {[%clk 0:03:01.8]}
11... Bb7 {[%clk 0:02:50.8]} 12. h3 {[%clk 0:03:01.5]} 12... Rc8 {[%clk
0:02:49.9]} 13. Be3 {[%clk 0:03:01.9]} 13... Re8 {[%clk 0:02:44.5]} 14. Qd2
{[%clk 0:02:36.5]} 14... Bf8 {[%clk 0:02:43.7]} 15. Rad1 {[%clk 0:02:29.2]}
15... Qc7 {[%clk 0:02:43.3]} 16. Bb3 {[%clk 0:02:09.3]} 16... h6 {[%clk
0:02:41.9]} 17. Rc1 {[%clk 0:01:20.7]} 17... Qb8 {[%clk 0:02:39.8]} 18. Qd3
{[%clk 0:00:30.8]} 18... exd4 {[%clk 0:02:34.1]} 19. Bxd4 {[%clk 0:00:32]} 19...
Ne5 {[%clk 0:02:16.6]} 20. Bxe5 {[%clk 0:00:26.6]} 20... dxe5 {[%clk 0:02:15.4]}
21. Nh4 {[%clk 0:00:26.6]} 21... Red8 {[%clk 0:02:03.5]} 22. Qg3 {[%clk
0:00:27.3]} 22... Bc5 {[%clk 0:01:54]} 23. Nf5 {[%clk 0:00:24]} 23... Nh5 {[%clk
0:01:20.6]} 24. Qg6 {[%clk 0:00:24.6]} 24... Bd5 {[%clk 0:00:53.4]} 25. Bxd5
{[%clk 0:00:22.3]} 25... Rxd5 {[%clk 0:00:53]} 26. Nxh6+ {[%clk 0:00:23.2]}
26... Kh8 {[%clk 0:00:49.5]} 27. Nxf7+ {[%clk 0:00:24.3]} 27... Kg8 {[%clk
0:00:50.1]} 28. Nxd5 {[%clk 0:00:22.1]} 28... Nf4 {[%clk 0:00:44.4]} 29. Nxf4
{[%clk 0:00:20.3]} 29... exf4 {[%clk 0:00:39.9]} 30. Ng5 {[%clk 0:00:21.5]}
30... Qb7 {[%clk 0:00:33.2]} 31. Qh7+ {[%clk 0:00:22.3]} 31... Kf8 {[%clk
0:00:33]} 32. Qh8+ {[%clk 0:00:23.8]} 32... Ke7 {[%clk 0:00:33.3]} 33. Qxg7+
{[%clk 0:00:25.7]} 33... Ke8 {[%clk 0:00:34]} 34. Qxb7 {[%clk 0:00:27.6]} 1-0